bitfinex-derivatives/quotes_BTCF0:USTF0_20250912
["timestamp","ask_amount","ask_price","bid_price","bid_amount"]
[1757637672872,0.98310153,116050.0,116040.0,0.71522068]
[1757637674165,0.98310153,116050.0,116040.0,0.54972]
[1757637674365,0.81760085,116050.0,116040.0,0.71522068]
[1757637674570,0.01780085,116050.0,116040.0,0.59102068]
[1757637674769,0.98274153,116050.0,116040.0,0.45102068]
[1757637675775,0.98274153,116050.0,116040.0,0.35435835]
[1757637675977,0.98274153,116050.0,116040.0,0.51985903]
[1757637676172,0.98274153,116050.0,116040.0,0.35435835]
[1757637676378,0.98250153,116050.0,116040.0,0.51985903]
[1757637679673,0.98250153,116050.0,116040.0,0.35435835]
[1757637679872,0.98250153,116050.0,116040.0,0.10435835]
[1757637680078,0.98250153,116050.0,116040.0,0.26985903]
[1757637681377,0.98250153,116050.0,116040.0,0.10435835]
[1757637683376,1.14800221,116050.0,116040.0,0.03552]
[1757637683583,1.75880221,116050.0,116040.0,0.03552]
[1757637689393,1.75880221,116050.0,116040.0,0.0139]
[1757637690894,0.95960221,116050.0,116040.0,0.0139]
[1757637691087,1.75664221,116050.0,116040.0,0.0139]
[1757637691283,1.75664221,116050.0,116040.0,0.03564]
[1757637692088,1.42564085,116050.0,116040.0,0.03564]
[1757637692295,1.75664221,116050.0,116040.0,0.03564]
[1757637695096,1.75664221,116050.0,116040.0,0.0139]
[1757637695795,0.95960221,116050.0,116040.0,0.0139]
[1757637695992,1.75592221,116050.0,116040.0,0.0139]
[1757637699300,1.50592221,116050.0,116040.0,0.0139]
[1757637700293,1.50544221,116050.0,116040.0,0.0139]
[1757637701901,1.50528221,116050.0,116040.0,0.03564]
[1757637702388,1.50508221,116050.0,116040.0,0.03564]
[1757637702801,1.33958153,116050.0,116040.0,0.03564]
[1757637703502,1.50508221,116050.0,116040.0,0.03564]
[1757637705004,1.17408085,116050.0,116040.0,0.03564]
[1757637705202,1.50508221,116050.0,116040.0,0.03564]
[1757637708203,1.50424221,116050.0,116040.0,0.03564]
[1757637708508,1.33872813,116050.0,116040.0,0.03564]
[1757637710799,1.33836813,116050.0,116040.0,0.03564]
[1757637711906,1.17288085,116050.0,116040.0,0.03564]
[1757637712103,1.33836813,116050.0,116040.0,0.03564]
[1757637713600,1.33836813,116050.0,116040.0,0.0139]
[1757637714202,1.33836813,116050.0,116040.0,0.03522]
[1757637715108,1.33836813,116050.0,116040.0,0.0139]
[1757637716205,1.33836813,116050.0,116040.0,0.03522]
[1757637716509,1.33836813,116050.0,116040.0,0.0139]
[1757637717814,1.33836813,116050.0,116040.0,0.03522]
[1757637718810,1.33836813,116050.0,116040.0,0.0139]
[1757637719907,1.33836813,116050.0,116040.0,0.03522]
[1757637720710,1.33836813,116050.0,116040.0,0.0139]
[1757637721104,1.50385541,116050.0,116040.0,0.0139]
[1757637721310,1.14305541,116050.0,116040.0,0.0139]
[1757637721708,1.50385541,116050.0,116040.0,0.0139]
[1757637722315,1.50361541,116050.0,116040.0,0.0139]
[1757637725316,1.52522657,116050.0,116040.0,0.0139]
[1757637726314,1.50361541,116050.0,116040.0,0.0139]
[1757637728214,1.77522634,116050.0,116040.0,0.0139]
[1757637728411,1.77522634,116050.0,116030.0,0.01197755]
[1757637728613,0.69177456,116040.0,116030.0,0.01197755]
[1757637729514,0.69395221,116040.0,116030.0,0.01197755]
[1757637729713,0.69395221,116040.0,116030.0,0.01397755]
[1757637731721,0.94395221,116040.0,116020.0,0.01305]
[1757637732013,1.31948728,116030.0,116020.0,0.01305]
[1757637732213,1.33729325,116030.0,116020.0,0.01305]
[1757637732622,1.3394709,116030.0,116020.0,0.01305]
[1757637733719,1.40731595,116030.0,116020.0,0.01305]
[1757637734511,1.40731595,116030.0,116010.0,0.01296]
[1757637734512,1.82280323,116030.0,116010.0,0.01296]
[1757637734821,0.69514187,116020.0,116010.0,0.01296]
[1757637735018,1.05594187,116020.0,116010.0,0.01296]
[1757637735719,1.84886187,116020.0,116010.0,0.01296]
[1757637736219,1.05594187,116020.0,116010.0,0.01296]
[1757637736422,1.84878187,116020.0,116010.0,0.01296]
[1757637737133,1.84862187,116020.0,116010.0,0.01296]
[1757637738426,1.05594187,116020.0,116010.0,0.03428]
[1757637738633,0.79620731,116020.0,116010.0,0.03428]
[1757637738828,0.96169459,116020.0,116010.0,0.03428]
[1757637739523,0.97086771,116020.0,116010.0,0.03428]
[1757637739724,0.16885459,116020.0,116010.0,0.03428]
[1757637739924,0.00336731,116020.0,116010.0,0.03428]
[1757637740123,0.16885459,116020.0,116010.0,0.28428]
[1757637740325,0.79751697,116020.0,116010.0,0.59976728]
[1757637740522,0.96300425,116020.0,116010.0,0.28428]
[1757637740727,0.79751697,116020.0,116010.0,0.28428]
[1757637740926,0.96300425,116020.0,116010.0,0.65416513]
[1757637742542,0.96300425,116020.0,116010.0,0.28428]
[1757637743138,0.96300425,116020.0,116010.0,0.03428]
[1757637743441,1.32380425,116020.0,116010.0,0.03428]
[1757637745543,1.31924728,116020.0,116010.0,0.03428]
[1757637745747,1.32499266,116020.0,116010.0,0.03428]
[1757637746743,0.79894538,116020.0,116010.0,0.39508]
[1757637746937,0.96419266,116020.0,116010.0,0.39508]
[1757637748149,0.79870538,116020.0,116010.0,0.39508]
[1757637748350,0.96419266,116020.0,116010.0,0.39508]
[1757637748548,0.79870538,116020.0,116010.0,0.39508]
[1757637748850,0.96419266,116020.0,116010.0,0.39508]
[1757637749037,0.96455266,116020.0,116010.0,0.39508]
[1757637749242,0.79906538,116020.0,116010.0,0.39508]
[1757637749438,0.96455266,116020.0,116010.0,0.39508]
[1757637749642,0.96455266,116020.0,116010.0,0.65928]
[1757637750950,0.96574086,116020.0,116010.0,0.65928]
[1757637755348,0.00693358,116020.0,116010.0,0.96476728]
[1757637755549,0.79973358,116020.0,116010.0,0.96476728]
[1757637755749,0.00693358,116020.0,116010.0,1.22476728]
[1757637755949,0.79993358,116020.0,116010.0,1.24491522]
[1757637756455,0.80016898,116020.0,116010.0,0.98071522]
[1757637756645,0.80016898,116020.0,116010.0,0.99071522]
[1757637757447,0.80016898,116020.0,116010.0,0.98171522]
[1757637757845,0.00716898,116020.0,116010.0,0.98371522]
[1757637758046,0.80020898,116020.0,116010.0,0.66922794]
[1757637758246,0.80020898,116020.0,116010.0,0.98471522]
[1757637758649,0.80020898,116020.0,116010.0,1.06161713]
[1757637759052,0.80020898,116020.0,116010.0,1.05161713]
[1757637759345,0.80020898,116020.0,116010.0,0.87135561]
[1757637759542,0.80020898,116020.0,116010.0,0.90135561]
[1757637759850,0.80020898,116020.0,116010.0,0.87135561]
[1757637760156,0.80000898,116020.0,116010.0,1.28135561]
[1757637760356,0.80000898,116020.0,116010.0,1.2044537]
[1757637760557,0.80000898,116020.0,116010.0,1.28135561]
[1757637761251,0.80000898,116020.0,116010.0,1.69684289]
[1757637761450,0.80000898,116020.0,116010.0,1.79555561]
[1757637762051,0.80000898,116020.0,116010.0,2.04721049]
[1757637762355,0.80000898,116020.0,116010.0,1.34530858]
[1757637762747,0.80000898,116020.0,116010.0,2.14381049]
[1757637764054,0.80000898,116020.0,116010.0,1.98074098]
[1757637764252,0.80000898,116020.0,116010.0,1.8152537]
[1757637765357,0.80000898,116020.0,116010.0,1.89215561]
[1757637767259,0.80000898,116020.0,116010.0,1.72666833]
[1757637767455,0.80000898,116020.0,116010.0,1.89215561]
[1757637768360,0.80000898,116020.0,116010.0,1.89215633]
[1757637768564,0.80000898,116020.0,116010.0,1.72666833]
[1757637768761,0.80000898,116020.0,116010.0,1.89215633]
[1757637769557,0.80000898,116020.0,116010.0,2.05764433]
[1757637772165,0.80000898,116020.0,116010.0,1.98074242]
[1757637772557,0.80000898,116020.0,116010.0,2.08843419]
[1757637773367,0.80000898,116020.0,116010.0,2.02165819]
[1757637773564,0.80000898,116020.0,116010.0,2.35263419]
[1757637774566,0.80000898,116020.0,116010.0,2.24494242]
[1757637781367,0.80000898,116020.0,116010.0,2.35235877]
[1757637781969,0.80000898,116020.0,116010.0,2.43852637]
[1757637782572,0.96549698,116020.0,116010.0,1.93687077]
[1757637782773,0.96549698,116020.0,116010.0,2.01359483]
[1757637782974,0.80000898,116020.0,116010.0,1.90617848]
[1757637783667,0.80000898,116020.0,116010.0,1.82945442]
[1757637784665,0.96549698,116020.0,116010.0,1.82945442]
[1757637785064,0.96549698,116020.0,116010.0,1.90618303]
[1757637785261,0.96549698,116020.0,116010.0,1.93687448]
[1757637785670,0.96549698,116020.0,116010.0,1.82945442]
[1757637785870,0.96549698,116020.0,116010.0,1.77140273]
[1757637786071,0.96549698,116020.0,116010.0,1.93689073]
[1757637787466,0.96549698,116020.0,116010.0,1.82945442]
[1757637788576,0.80000898,116020.0,116010.0,1.82945442]
[1757637788775,0.96549698,116020.0,116010.0,0.94236642]
[1757637789077,0.96549698,116020.0,116010.0,1.93691428]
[1757637790373,0.80000898,116020.0,116010.0,1.93691428]
[1757637790574,0.96549698,116020.0,116010.0,1.93691428]
[1757637790975,0.00716898,116020.0,116010.0,1.93691428]
[1757637791181,0.96853698,116020.0,116010.0,1.93691428]
[1757637791683,0.96853698,116020.0,116010.0,1.82945442]
[1757637792375,0.80304898,116020.0,116010.0,1.82945442]
[1757637792572,0.80304898,116020.0,116010.0,1.93694106]
[1757637792977,0.80304898,116020.0,116010.0,1.82945442]
[1757637793477,0.80304898,116020.0,116010.0,1.93694106]
[1757637795281,0.00716898,116020.0,116010.0,1.93694106]
[1757637795482,0.80248898,116020.0,116010.0,1.93694106]
[1757637796183,0.80248898,116020.0,116010.0,1.82945442]
[1757637796485,0.80212898,116020.0,116010.0,1.93695808]
[1757637797290,0.80212898,116020.0,116010.0,2.01375134]
[1757637797586,0.80212898,116020.0,116010.0,1.90624768]
[1757637799988,0.80212898,116020.0,116010.0,1.82945442]
[1757637800489,0.80212898,116020.0,116010.0,1.93699471]
[1757637800692,0.96761698,116020.0,116010.0,1.93699471]
[1757637800886,0.96761698,116020.0,116010.0,1.82945442]
[1757637801584,0.96761698,116020.0,116010.0,1.27945442]
[1757637801791,1.38310498,116020.0,116010.0,1.12105348]
[1757637801986,1.38310498,116020.0,116010.0,1.04422794]
[1757637802189,1.38310498,116020.0,116010.0,1.15178369]
[1757637802690,1.38310498,116020.0,116010.0,1.20971594]
[1757637803079,1.38310498,116020.0,116010.0,1.15180983]
[1757637803483,1.38310498,116020.0,116010.0,1.04422794]
[1757637804092,0.58814498,116020.0,116010.0,1.04422794]
[1757637804391,1.21681698,116020.0,116010.0,1.20971594]
[1757637804586,1.21681698,116020.0,116010.0,1.31729783]
[1757637804785,0.42265698,116020.0,116010.0,1.31729783]
[1757637804992,0.42265698,116020.0,116010.0,1.20309783]
[1757637804993,0.80148898,116020.0,116010.0,1.20309783]
[1757637805191,0.80148898,116020.0,116010.0,1.05309783]
[1757637805391,0.80148898,116020.0,116010.0,1.19309783]
[1757637805592,0.96697698,116020.0,116010.0,1.19309783]
[1757637806389,0.96697698,116020.0,116010.0,1.05309783]
[1757637806695,0.96697698,116020.0,116010.0,1.08551594]
[1757637807096,0.96697698,116020.0,116010.0,0.94551594]
[1757637807391,0.96697698,116020.0,116010.0,1.08551594]
[1757637807893,0.96697698,116020.0,116010.0,0.78002794]
[1757637808292,0.96697698,116020.0,116010.0,0.94551594]
[1757637808892,0.80148898,116020.0,116010.0,0.78002794]
[1757637809194,0.96697698,116020.0,116010.0,0.94551594]
[1757637809389,0.80148898,116020.0,116010.0,0.94551594]
[1757637809694,1.13246498,116020.0,116010.0,0.78002794]
[1757637809892,1.13246498,116020.0,116010.0,0.94551594]
[1757637810094,0.96697698,116020.0,116010.0,1.02238665]
[1757637810482,1.13246498,116020.0,116010.0,1.02238665]
[1757637810682,0.96697698,116020.0,116010.0,1.02238665]
[1757637811095,0.96697698,116020.0,116010.0,1.12996854]
[1757637811299,0.96697698,116020.0,116010.0,1.05309783]
[1757637812295,0.96697698,116020.0,116010.0,0.94551594]
[1757637812495,0.96697698,116020.0,116010.0,1.02239367]
[1757637812897,0.80148898,116020.0,116010.0,0.94551594]
[1757637813195,0.96697698,116020.0,116010.0,1.02239367]
[1757637813394,0.80148898,116020.0,116010.0,1.02239367]
[1757637813596,0.96697698,116020.0,116010.0,0.94551594]
[1757637813996,0.96697698,116020.0,116010.0,1.05309783]
[1757637814198,0.96697698,116020.0,116010.0,1.12997602]
[1757637814497,0.96697698,116020.0,116010.0,1.02239413]
[1757637814889,0.96697698,116020.0,116010.0,1.28659413]
[1757637815088,1.13246498,116020.0,116010.0,1.04422794]
[1757637815285,1.38246498,116020.0,116010.0,0.79100983]
[1757637815697,1.38246498,116020.0,116010.0,0.68342794]
[1757637815888,1.05148898,116020.0,116010.0,0.68342794]
[1757637816091,1.38246498,116020.0,116010.0,0.68342794]
[1757637817496,1.38246498,116020.0,116010.0,0.41922794]
[1757637818200,1.38246498,116020.0,116010.0,0.49610499]
[1757637818601,1.38246498,116020.0,116010.0,0.13530499]
[1757637819405,1.14160103,116020.0,116010.0,0.13530499]
[1757637820003,1.14160103,116020.0,116010.0,0.11398499]
[1757637820599,1.39160103,116020.0,116010.0,0.01696]
[1757637820802,1.40874746,116020.0,116010.0,0.01696]
[1757637822102,0.61442746,116020.0,116010.0,0.01696]
[1757637822306,1.40730746,116020.0,116010.0,0.09383705]
[1757637823603,1.40730746,116020.0,116010.0,0.01696]
[1757637823804,1.40730746,116020.0,116010.0,0.12454189]
[1757637824402,0.61442746,116020.0,116010.0,0.12454189]
[1757637824607,1.40718746,116020.0,116010.0,0.01696]
[1757637825005,1.93347546,116020.0,116010.0,0.01696]
[1757637826810,1.93347546,116020.0,116010.0,0.01496]
[1757637827313,1.93447546,116020.0,116010.0,0.01296]
[1757637828814,1.14171546,116020.0,116010.0,0.01296]
[1757637829013,1.93411546,116020.0,116010.0,0.01296]
[1757637829212,1.93399546,116020.0,116010.0,0.01296]
[1757637830410,1.76871582,116020.0,116010.0,0.01296]
[1757637831217,0.55170759,116020.0,116010.0,0.03416]
[1757637831412,0.81755541,116020.0,116010.0,0.03416]
[1757637831615,0.98314759,116020.0,116010.0,0.03416]
[1757637832127,0.98314759,116020.0,116010.0,0.39496]
[1757637832418,0.98314759,116020.0,116010.0,0.03416]
[1757637833018,0.98314759,116020.0,116010.0,0.39496]
[1757637833211,0.98214759,116020.0,116010.0,0.39496]
[1757637833411,0.98314759,116020.0,116010.0,0.39496]
[1757637834020,0.98214759,116020.0,116010.0,0.39496]
[1757637834217,0.81655541,116020.0,116010.0,0.39496]
[1757637834819,0.18990759,116020.0,116010.0,0.39496]
[1757637835017,0.98214759,116020.0,116010.0,0.39496]
[1757637839020,0.81655541,116020.0,116010.0,0.39496]
[1757637839221,0.98214759,116020.0,116010.0,0.39496]
[1757637853629,0.81651541,116020.0,116010.0,0.39496]
[1757637853829,0.98210759,116020.0,116010.0,0.39496]
[1757637859428,0.00716898,116020.0,116010.0,0.96055218]
[1757637859635,0.80228898,116020.0,116010.0,0.28416]
[1757637859829,0.00716898,116020.0,116010.0,0.30384948]
[1757637860135,0.80276898,116020.0,116010.0,0.31302217]
[1757637860337,0.80276898,116020.0,116010.0,0.63861435]
[1757637860538,0.80276898,116020.0,116010.0,0.31302217]
[1757637862738,0.80276898,116020.0,116010.0,0.31402217]
[1757637863248,0.80276898,116020.0,116010.0,0.31502217]
[1757637864028,0.80276898,116020.0,116010.0,0.38271228]
[1757637865043,0.96836116,116020.0,116010.0,0.38271228]
[1757637865229,0.78862487,116020.0,116010.0,0.64691228]
[1757637865434,0.95421705,116020.0,116010.0,0.64691228]
[1757637865630,0.78862487,116020.0,116010.0,0.64691228]
[1757637866036,0.78862487,116020.0,116010.0,0.81250446]
[1757637866347,0.95421705,116020.0,116010.0,0.64691228]
[1757637866942,0.78862487,116020.0,116010.0,0.64691228]
[1757637867335,0.78862487,116020.0,116010.0,0.81250446]
[1757637867641,0.95421705,116020.0,116010.0,0.64691228]
[1757637867841,0.95421705,116020.0,116010.0,0.81250446]
[1757637868041,0.78862487,116020.0,116010.0,0.73564166]
[1757637868243,0.78862487,116020.0,116010.0,0.47144166]
[1757637868444,0.95421705,116020.0,116010.0,0.47144166]
[1757637868743,1.7246001,116030.0,116010.0,0.47144166]
[1757637868941,0.16559218,116020.0,116010.0,0.05584948]
[1757637869243,0.83896,116020.0,116010.0,0.36144166]
[1757637869640,0.83896,116020.0,116010.0,0.22144166]
[1757637869940,0.83896,116020.0,116010.0,0.05584948]
[1757637870141,0.83896,116020.0,116010.0,0.39144166]
[1757637870341,1.00455218,116020.0,116010.0,0.39044166]
[1757637870742,1.00455218,116020.0,116010.0,0.05384948]
[1757637871045,1.00455218,116020.0,116010.0,0.38944166]
[1757637871243,1.00455218,116020.0,116010.0,0.21944166]
[1757637871445,0.83896,116020.0,116010.0,0.05384948]
[1757637871747,1.00455218,116020.0,116010.0,0.22044166]
[1757637871935,1.00455218,116020.0,116010.0,0.05484948]
[1757637872138,1.00455218,116020.0,116010.0,0.22144166]
[1757637872347,1.00455218,116020.0,116010.0,0.05584948]
[1757637872742,0.83896,116020.0,116010.0,0.05584948]
[1757637873248,1.00455218,116020.0,116010.0,0.05584948]
[1757637874043,1.00455218,116020.0,116010.0,0.22144166]
[1757637874247,0.0689201,116030.0,116020.0,0.01376]
[1757637874554,0.8394,116030.0,116020.0,0.0353]
[1757637874847,0.8394,116030.0,116020.0,0.36089218]
[1757637875143,0.8394,116030.0,116020.0,0.35089218]
[1757637875444,0.06934417,116070.0,116060.0,0.0353]
[1757637875650,0.86403274,116070.0,116060.0,0.0353]
[1757637876159,0.87297805,116070.0,116060.0,0.01376]
[1757637876938,1.20416241,116070.0,116060.0,0.01376]
[1757637877146,0.87297805,116070.0,116060.0,0.01376]
[1757637877748,0.87297805,116070.0,116060.0,0.0353]
[1757637878138,0.87397805,116070.0,116060.0,0.0353]
[1757637878345,0.91048491,116070.0,116060.0,0.0353]
[1757637879545,0.84256,116070.0,116060.0,0.0353]
[1757637882236,0.84256,116070.0,116060.0,0.01376]
[1757637882545,1.42374436,116070.0,116060.0,0.01376]
[1757637882745,1.09256,116070.0,116060.0,0.01376]
[1757637883051,1.42374436,116070.0,116060.0,0.01376]
[1757637883444,1.42374436,116070.0,116060.0,0.0353]
[1757637883656,0.86374072,116070.0,116060.0,0.0353]
[1757637883855,0.84256,116070.0,116060.0,0.0353]
[1757637884247,1.17374436,116070.0,116060.0,0.0353]
[1757637884553,0.84256,116070.0,116060.0,0.0353]
[1757637885452,0.84256,116070.0,116060.0,0.2853]
[1757637886543,1.17374436,116070.0,116060.0,0.0353]
[1757637886744,0.84256,116070.0,116060.0,0.0353]
[1757637887148,1.00815218,116070.0,116060.0,0.0353]
[1757637887343,0.84256,116070.0,116060.0,0.0353]
[1757637889053,0.84256,116070.0,116060.0,0.2853]
[1757637890155,5.868e-05,116090.0,116080.0,0.0353]
[1757637890347,5.868e-05,116090.0,116080.0,0.05305198]
[1757637890659,5.868e-05,116090.0,116080.0,0.30305198]
[1757637891259,5.868e-05,116090.0,116080.0,0.3120263]
[1757637891553,0.00305868,116090.0,116080.0,0.47761848]
[1757637891749,0.00305868,116090.0,116080.0,0.3120263]
[1757637891947,0.00305868,116090.0,116080.0,0.63761848]
[1757637892149,0.00305868,116090.0,116080.0,0.3120263]
[1757637893050,0.16834784,116090.0,116080.0,0.05305198]
[1757637893353,0.023747,116090.0,116080.0,0.0353]
[1757637893656,0.023747,116090.0,116080.0,0.04391]
[1757637893856,0.00305868,116090.0,116080.0,0.04391]
[1757637894255,0.41834784,116090.0,116080.0,0.04391]
[1757637894458,0.27374506,116090.0,116080.0,0.04391]
[1757637894961,0.60432338,116090.0,116080.0,0.02237]
[1757637895351,0.27374506,116090.0,116080.0,0.02237]
[1757637895653,0.27374506,116090.0,116080.0,0.04559]
[1757637895854,0.02374506,116090.0,116080.0,0.21087916]
[1757637896055,0.39465868,116090.0,116080.0,0.21087916]
[1757637896253,0.55994784,116090.0,116080.0,0.04559]
[1757637896456,0.58063716,116090.0,116080.0,0.04559]
[1757637896760,0.39465868,116090.0,116080.0,0.21087916]
[1757637897061,0.58063661,116090.0,116080.0,0.04559]
[1757637897959,0.39465868,116090.0,116080.0,0.04559]
[1757637898157,0.39465868,116090.0,116080.0,0.21087916]
[1757637898358,0.55994784,116090.0,116080.0,0.04559]
[1757637898759,0.39465868,116090.0,116080.0,0.04559]
[1757637899554,0.55994784,116090.0,116080.0,0.04559]
[1757637900662,0.39465868,116090.0,116080.0,0.04559]
[1757637901258,0.4152336,116090.0,116080.0,0.04559]
[1757637901463,0.0236336,116090.0,116080.0,0.04559]
[1757637901662,0.18892276,116090.0,116080.0,0.04559]
[1757637901869,0.0236336,116090.0,116080.0,0.04559]
[1757637902166,0.18892276,116090.0,116080.0,0.04559]
[1757637902367,0.43892276,116090.0,116080.0,0.04559]
[1757637902662,0.63516553,116090.0,116080.0,0.02237]
[1757637902962,0.80045469,116090.0,116070.0,0.01376]
[1757637903161,2.18170109,116080.0,116060.0,0.01376]
[1757637903357,0.49586748,116070.0,116050.0,0.01376]
[1757637903561,1.53306748,116060.0,116050.0,0.60376]
[1757637903766,1.8036424,116060.0,116050.0,0.21376]
[1757637903967,1.30765492,116060.0,116050.0,0.58376]
[1757637904170,1.30789492,116060.0,116050.0,0.58376]
[1757637904466,1.37743111,116060.0,116050.0,0.58376]
[1757637904862,1.53256924,116060.0,116050.0,0.58376]
[1757637905264,0.09011111,116060.0,116050.0,0.17698]
[1757637905456,0.09011111,116060.0,116050.0,0.03698]
[1757637905658,0.02057492,116060.0,116050.0,0.03698]
[1757637905972,1.84097174,116080.0,116070.0,0.03634]
[1757637906173,2.89991557,116080.0,116070.0,0.03634]
[1757637906362,1.67590383,116080.0,116070.0,0.03634]
[1757637906561,2.71358383,116080.0,116070.0,0.03634]
[1757637906763,2.78386139,116080.0,116070.0,0.03634]
[1757637906965,1.90159952,116080.0,116070.0,0.03634]
[1757637907365,2.78446139,116080.0,116070.0,0.03634]
[1757637907566,2.815415,116080.0,116070.0,0.03634]
[1757637907765,2.78446139,116080.0,116070.0,0.03634]
[1757637908067,2.78446139,116080.0,116070.0,0.01312]
[1757637908463,2.78446139,116080.0,116070.0,0.03634]
[1757637908668,2.815415,116080.0,116070.0,0.03634]
[1757637909269,3.22055313,116080.0,116070.0,0.01312]
[1757637909774,3.065415,116080.0,116070.0,0.01312]
[1757637910171,3.22055313,116080.0,116070.0,0.01312]
[1757637910567,3.03446139,116080.0,116070.0,0.03634]
[1757637910765,3.18959952,116080.0,116070.0,0.03634]
[1757637910974,3.22055313,116080.0,116070.0,0.01312]
[1757637911169,3.37569126,116080.0,116070.0,0.01312]
[1757637911370,3.37569126,116080.0,116060.0,0.01312]
[1757637911371,3.42234138,116080.0,116060.0,0.01312]
[1757637911571,2.86206512,116080.0,116060.0,0.01312]
[1757637911870,0.31027626,116070.0,116060.0,0.01312]
[1757637912074,0.3622537,116070.0,116060.0,0.01312]
[1757637912271,0.31027626,116070.0,116060.0,0.01312]
[1757637912473,1.72643756,116080.0,116070.0,0.01312]
[1757637912674,3.09145196,116080.0,116070.0,0.01312]
[1757637912866,3.09093196,116080.0,116070.0,0.01312]
[1757637913076,2.7806557,116080.0,116070.0,0.01312]
[1757637913273,2.7806557,116080.0,116070.0,0.03634]
[1757637913474,1.7474557,116080.0,116070.0,0.28634]
[1757637913682,2.7808557,116080.0,116070.0,0.28634]
[1757637913980,2.71029814,116080.0,116070.0,0.28634]
[1757637914777,2.86543627,116080.0,116070.0,0.28634]
[1757637915380,2.86543627,116080.0,116070.0,0.03634]
[1757637915581,2.71029814,116080.0,116070.0,0.03634]
[1757637915785,2.86543627,116080.0,116070.0,0.03634]
[1757637915976,3.2705744,116080.0,116070.0,0.01312]
[1757637916480,3.2705744,116080.0,116060.0,0.01312]
[1757637916781,2.99125175,116080.0,116070.0,0.01312]
[1757637916984,2.99125175,116080.0,116060.0,0.01312]
[1757637917282,2.96029814,116080.0,116070.0,0.01312]
[1757637917581,3.2705744,116080.0,116070.0,0.01312]
[1757637917779,3.0195744,116080.0,116070.0,0.01312]
[1757637919277,3.0195744,116080.0,116060.0,0.01312]
[1757637919278,2.70929814,116080.0,116060.0,0.01312]
[1757637919578,1.92689814,116080.0,116070.0,0.01312]
[1757637919781,3.0148944,116080.0,116070.0,0.01312]
[1757637920184,3.0158944,116080.0,116070.0,0.01312]
[1757637920681,1.83303627,116080.0,116070.0,0.01312]
[1757637921084,3.0140944,116080.0,116070.0,0.01312]
[1757637921483,3.2640944,116080.0,116070.0,0.01312]
[1757637921683,3.2640944,116080.0,116060.0,0.01312]
[1757637921883,0.31027626,116070.0,116060.0,0.01312]
[1757637922186,0.3312944,116070.0,116060.0,0.01312]
[1757637922586,0.02101814,116070.0,116060.0,0.01312]
[1757637922785,0.3312944,116070.0,116060.0,0.01312]
[1757637923287,1.3540144,116070.0,116060.0,0.01312]
[1757637923488,1.37390791,116070.0,116060.0,0.01312]
[1757637924289,1.62390791,116070.0,116050.0,0.01376]
[1757637924478,0.15513813,116060.0,116050.0,0.01376]
[1757637924788,0.17615627,116060.0,116050.0,0.01376]
[1757637925286,0.02101814,116060.0,116050.0,0.01376]
[1757637925487,0.15513813,116060.0,116050.0,0.01376]
[1757637925687,0.17615627,116060.0,116050.0,0.01376]
[1757637926682,0.15513813,116060.0,116050.0,0.01376]
[1757637927184,1.04261351,116070.0,116060.0,0.01268]
[1757637927383,1.37427238,116070.0,116060.0,0.01268]
[1757637928990,1.37527238,116070.0,116060.0,0.01268]
[1757637929190,1.37627238,116070.0,116060.0,0.01268]
[1757637929584,1.62627238,116070.0,116040.0,0.01312]
[1757637929784,0.15513813,116050.0,116040.0,0.01312]
[1757637929988,1.414722,116050.0,116040.0,0.01312]
[1757637931386,1.25958387,116050.0,116040.0,0.01312]
[1757637931591,1.414722,116050.0,116040.0,0.01312]
[1757637931992,1.664722,116050.0,116030.0,0.01268]
[1757637932188,0.31027626,116040.0,116030.0,0.01268]
[1757637933494,0.56027626,116040.0,116020.0,0.01268]
[1757637933695,2.82445813,116030.0,116020.0,0.01268]
[1757637933895,2.85349536,116030.0,116020.0,0.01268]
[1757637934196,2.69835723,116030.0,116020.0,0.01268]
[1757637934694,1.83961536,116030.0,116020.0,0.01268]
[1757637934893,2.85273536,116030.0,116020.0,0.01268]
[1757637935095,1.83961536,116030.0,116020.0,0.01268]
[1757637935294,2.69807723,116030.0,116020.0,0.01268]
[1757637935593,2.85321536,116030.0,116020.0,0.01268]
[1757637935994,2.69807723,116030.0,116020.0,0.01268]
[1757637936201,2.85321536,116030.0,116020.0,0.01268]
[1757637936396,2.69807723,116030.0,116020.0,0.01268]
[1757637936696,2.85321536,116030.0,116020.0,0.01368]
[1757637937691,2.69807723,116030.0,116020.0,0.01368]
[1757637937892,2.85321536,116030.0,116020.0,0.01368]
[1757637939099,3.00835349,116030.0,116020.0,0.01368]
[1757637939500,2.85321536,116030.0,116020.0,0.01368]
[1757637939792,2.69807723,116030.0,116020.0,0.01368]
[1757637939993,2.85321536,116030.0,116020.0,0.01368]
[1757637940591,3.00835349,116030.0,116020.0,0.01368]
[1757637940998,3.25835349,116030.0,115990.0,0.01268]
[1757637941296,3.25835349,116030.0,115980.0,0.01268]
[1757637941297,0.31027626,116000.0,115980.0,0.01268]
[1757637941500,1.16345813,115990.0,115980.0,0.01268]
[1757637941702,2.81859626,115990.0,115980.0,0.01268]
[1757637941900,1.5,115990.0,115980.0,0.01268]
[1757637942096,2.81791626,115990.0,115980.0,0.01268]
[1757637942398,2.73170119,115990.0,115980.0,0.01268]
[1757637942604,2.88683932,115990.0,115980.0,0.01268]
[1757637943104,2.88683932,115990.0,115970.0,0.01268]
[1757637943303,1.96611626,115980.0,115970.0,0.01268]
[1757637943704,2.97203626,115980.0,115970.0,0.01268]
[1757637944196,2.99187559,115980.0,115960.0,0.01268]
[1757637944400,0.15513813,115970.0,115960.0,0.01268]
[1757637944801,0.15513813,115970.0,115950.0,0.01268]
[1757637944996,1.31435626,115960.0,115950.0,0.01268]
[1757637945201,1.31479626,115960.0,115950.0,0.01268]
[1757637945907,1.15945813,115960.0,115950.0,0.01568]
[1757637946304,1.31459626,115960.0,115950.0,0.01868]
[1757637946501,1.33464734,115960.0,115950.0,0.006]
[1757637946697,1.34358527,115960.0,115950.0,0.006]
[1757637946900,0.31027626,115950.0,115930.0,0.01268]
[1757637947100,1.31583626,115940.0,115930.0,0.01268]
[1757637947406,1.02554746,115940.0,115930.0,0.01268]
[1757637947609,1.18068559,115940.0,115930.0,0.01268]
[1757637947799,1.33582372,115940.0,115930.0,0.01268]
[1757637947994,1.33582372,115940.0,115920.0,0.01268]
[1757637948205,1.96639626,115930.0,115920.0,0.01268]
[1757637948706,2.97943626,115930.0,115920.0,0.01268]
[1757637949407,2.97943626,115930.0,115920.0,0.01468]
[1757637949603,2.66916,115930.0,115920.0,0.02068]
[1757637950010,2.66712,115930.0,115920.0,0.2925]
[1757637950204,2.82225813,115930.0,115920.0,0.2925]
[1757637950711,1.87900294,115930.0,115920.0,0.2925]
[1757637950911,2.88904294,115930.0,115920.0,0.2925]